bitfinex/quotes_BTCUSD_20240803
["timestamp","ask_amount","ask_price","bid_price","bid_amount"]
[1722645175645,0.00406293,61538.0,61527.0,0.07875194]
[1722645175836,0.00406293,61538.0,61528.0,0.15745924]
[1722645176552,0.00993706,61542.0,61528.0,0.15745924]
[1722645176783,0.11413487,61541.0,61528.0,0.15745924]
[1722645176969,0.00406294,61541.0,61528.0,0.15745924]
[1722645177394,0.001,61538.0,61528.0,0.15745924]
[1722645177603,0.19240723,61537.0,61528.0,0.001]
[1722645177913,0.1455,61532.0,61528.0,0.001]
[1722645178065,0.11347114,61531.0,61514.0,0.1]
[1722645178244,0.11098162,61530.0,61514.0,0.1]
[1722645178592,0.11347115,61529.0,61514.0,0.1]
[1722645178826,0.00157439,61528.0,61514.0,0.1]
[1722645178974,0.00406392,61527.0,61514.0,0.1]
[1722645179413,0.10833096,61526.0,61514.0,0.1]
[1722645179599,0.00406392,61525.0,61514.0,0.1]
[1722645180454,0.00157439,61529.0,61514.0,0.1]
[1722645180455,0.00157439,61529.0,61516.0,0.07875194]
[1722645180661,0.002,61526.0,61517.0,0.1421]
[1722645181066,0.001,61526.0,61517.0,0.1421]
[1722645181279,0.52683782,61533.0,61517.0,0.1421]
[1722645181476,0.001,61525.0,61518.0,0.15745924]
[1722645182089,0.001,61525.0,61523.0,0.1]
[1722645182445,0.001,61525.0,61524.0,0.29955924]
[1722645182770,0.001,61525.0,61524.0,0.39955924]
[1722645183163,0.13133782,61544.0,61524.0,0.39955924]
[1722645183345,0.001,61525.0,61524.0,0.77526924]
[1722645183548,0.001,61526.0,61525.0,0.475704]
[1722645183757,0.07250674,61548.0,61541.0,0.1]
[1722645183758,0.04833782,61548.0,61541.0,0.1]
[1722645183940,0.04916782,61552.0,61541.0,0.1]
[1722645184154,0.00083,61552.0,61541.0,0.1]
[1722645184382,0.00083,61552.0,61542.0,0.15745924]
[1722645184383,0.007,61544.0,61542.0,0.15745924]
[1722645184587,0.007,61544.0,61543.0,0.20061794]
[1722645184795,0.007,61544.0,61543.0,0.81260918]
[1722645184998,0.007,61544.0,61543.0,0.94625494]
[1722645185203,0.007,61544.0,61543.0,1.25328694]
[1722645185435,0.00083,61552.0,61551.0,0.74125]
[1722645185643,0.00083,61552.0,61551.0,1.49929571]
[1722645186057,0.00083,61552.0,61551.0,1.38866924]
[1722645186263,0.00083,61552.0,61551.0,1.14496924]
[1722645186482,0.00083,61552.0,61551.0,0.50371924]
[1722645186685,0.00183,61552.0,61551.0,0.88326924]
[1722645186888,0.00183,61552.0,61551.0,1.40066924]
[1722645187116,0.00183,61552.0,61551.0,1.40266924]
[1722645187317,0.00183,61552.0,61551.0,1.51355075]
[1722645187519,0.00283,61552.0,61551.0,1.60630269]
[1722645187725,0.00183,61552.0,61551.0,1.59230269]
[1722645188097,0.00183,61552.0,61551.0,1.49542118]
[1722645188098,0.00283,61552.0,61551.0,1.49542118]
[1722645188505,0.00283,61552.0,61551.0,1.60630075]
[1722645189072,0.00083,61562.0,61561.0,0.98281]
[1722645189290,0.00083,61562.0,61561.0,1.34896924]
[1722645189535,0.00083,61562.0,61561.0,1.2158659]
[1722645190376,0.00083,61562.0,61561.0,1.4595259]
[1722645190585,0.00083,61562.0,61561.0,1.45926552]
[1722645190817,0.00183,61562.0,61561.0,1.51382528]
[1722645191019,0.00183,61562.0,61561.0,1.40352924]
[1722645191453,0.00183,61562.0,61561.0,1.13786924]
[1722645191801,0.00183,61562.0,61561.0,1.15786924]
[1722645192170,0.00183,61562.0,61561.0,1.14386924]
[1722645192379,0.00183,61562.0,61561.0,1.39352924]
[1722645192583,0.001,61562.0,61561.0,1.40452924]
[1722645192782,0.01006501,61585.0,61584.0,0.548353]
[1722645192986,0.01006501,61585.0,61584.0,0.83881224]
[1722645193538,0.01006501,61585.0,61584.0,0.86081224]
[1722645193899,0.01006501,61585.0,61584.0,0.89337224]
[1722645194094,0.01106501,61585.0,61584.0,1.15094124]
[1722645195127,0.01106501,61585.0,61584.0,0.87281224]
[1722645195290,0.01006501,61585.0,61584.0,1.10438124]
[1722645195736,0.01006501,61585.0,61584.0,1.37595024]
[1722645196143,0.01006501,61585.0,61584.0,1.10438124]
[1722645196345,0.01006501,61585.0,61584.0,0.86081224]
[1722645196551,0.01006501,61585.0,61584.0,0.85281224]
[1722645196790,0.01006501,61585.0,61584.0,0.49145924]
[1722645196992,0.01006501,61585.0,61584.0,0.59024324]
[1722645197112,0.01006501,61585.0,61584.0,0.82181224]
[1722645197307,0.01006501,61585.0,61584.0,0.46845924]
[1722645197507,0.01006501,61585.0,61584.0,0.38545924]
[1722645197928,0.01006501,61585.0,61584.0,0.28545924]
[1722645198748,0.01006501,61585.0,61584.0,0.27145924]
[1722645199196,0.01006501,61585.0,61584.0,0.1]
[1722645199700,0.01006501,61585.0,61584.0,0.26645924]
[1722645199906,0.01006501,61585.0,61584.0,0.49424324]
[1722645200108,0.01006501,61585.0,61584.0,0.82171224]
[1722645200318,0.01006501,61585.0,61584.0,0.57614324]
[1722645200520,0.01006501,61585.0,61584.0,0.45435924]
[1722645200724,0.01006501,61585.0,61584.0,0.57614324]
[1722645200892,0.01006501,61585.0,61584.0,0.45435924]
[1722645201504,0.01006501,61585.0,61584.0,0.57614324]
[1722645201852,0.01006501,61585.0,61584.0,1.06928124]
[1722645201985,0.01006501,61585.0,61584.0,1.13838124]
[1722645202230,0.0072508,61585.0,61584.0,1.18138124]
[1722645202419,0.0072508,61585.0,61584.0,1.17819545]
[1722645202627,0.0072508,61585.0,61584.0,1.16919545]
[1722645202828,0.0072508,61585.0,61584.0,1.19119545]
[1722645203111,0.0072508,61585.0,61584.0,1.43476445]
[1722645203311,0.0072508,61585.0,61584.0,1.42376445]
[1722645203469,0.0072508,61585.0,61584.0,1.43776445]
[1722645204433,0.0072508,61585.0,61584.0,1.20426045]
[1722645204839,0.0072508,61585.0,61584.0,1.19326045]
[1722645205046,0.0072508,61585.0,61584.0,1.43682945]
[1722645205570,0.0072508,61585.0,61584.0,1.42282945]
[1722645205769,0.0072508,61585.0,61584.0,1.43682945]
[1722645205995,0.0072508,61585.0,61584.0,1.45082945]
[1722645206172,0.0072508,61585.0,61584.0,1.82695845]
[1722645206738,0.01006501,61588.0,61587.0,1.120949]
[1722645206921,0.01006501,61588.0,61587.0,1.83140824]
[1722645207129,0.01006501,61588.0,61587.0,1.33135124]
[1722645207324,0.01006501,61588.0,61587.0,0.72045924]
[1722645207466,0.01006501,61588.0,61587.0,1.08579424]
[1722645207823,0.01006501,61588.0,61587.0,1.33135124]
[1722645208271,0.01006501,61588.0,61587.0,0.83223724]
[1722645208442,0.01006501,61588.0,61587.0,0.72045924]
[1722645208697,0.01006501,61588.0,61587.0,0.49545924]
[1722645208869,0.01006501,61588.0,61587.0,0.65779424]
[1722645209115,0.01006501,61588.0,61587.0,0.90135124]
[1722645209298,0.01006501,61588.0,61587.0,0.91335124]
[1722645209506,0.01006501,61588.0,61587.0,0.29045924]
[1722645209760,0.01006501,61588.0,61587.0,0.30445924]
[1722645209966,0.01006501,61588.0,61587.0,0.44023724]
[1722645210180,0.01006501,61588.0,61587.0,0.89935124]
[1722645210378,0.01006501,61588.0,61587.0,0.91335124]
[1722645210739,0.01006501,61588.0,61587.0,0.93335124]
[1722645210942,0.01006501,61588.0,61587.0,1.17890824]
[1722645211146,0.01006501,61588.0,61587.0,0.92735124]
[1722645211345,0.01006501,61588.0,61587.0,0.94935124]
[1722645211734,0.01006501,61588.0,61587.0,0.93535124]
[1722645211973,0.01006501,61588.0,61587.0,0.94935124]
[1722645212346,0.01006501,61588.0,61587.0,1.17890824]
[1722645212548,0.01006501,61588.0,61587.0,1.16490824]
[1722645212752,0.01006501,61588.0,61587.0,1.19290824]
[1722645213060,0.01006501,61588.0,61587.0,1.17890824]
[1722645213310,0.01006501,61588.0,61587.0,1.19290824]
[1722645213527,0.01006501,61588.0,61587.0,1.3047891]
[1722645213731,0.01006501,61588.0,61587.0,1.19290824]
[1722645213947,0.01006501,61588.0,61587.0,1.30479429]
[1722645215223,0.01006501,61588.0,61587.0,1.3722368]
[1722645215396,0.01006501,61588.0,61587.0,1.4371368]
[1722645215739,0.01006501,61588.0,61587.0,1.4908368]
[1722645215889,0.01006501,61588.0,61587.0,0.4877878]
[1722645216270,0.01006501,61588.0,61587.0,0.29734529]
[1722645216512,0.01006501,61588.0,61587.0,0.28334529]
[1722645216910,0.01006501,61588.0,61587.0,0.29734529]
[1722645217247,0.01006501,61588.0,61587.0,0.28334529]
[1722645217460,0.01006501,61588.0,61587.0,0.29707556]
[1722645217662,0.01006501,61588.0,61587.0,0.18545924]
[1722645217891,0.01006501,61588.0,61587.0,0.17145924]
[1722645218089,0.14856501,61588.0,61587.0,0.014]
[1722645218290,0.14856501,61588.0,61587.0,0.028]
[1722645218864,0.14856501,61588.0,61584.0,0.010065]
[1722645218865,0.14007439,61587.0,61584.0,0.010065]
[1722645219064,0.14007439,61585.0,61584.0,0.010065]
[1722645219284,0.29619848,61585.0,61584.0,0.010065]
[1722645219485,0.1385,61585.0,61584.0,0.010065]
[1722645219935,0.29427448,61585.0,61584.0,0.010065]
[1722645220141,0.29021456,61585.0,61584.0,0.010065]
[1722645220375,0.1385,61585.0,61584.0,0.013065]
[1722645220545,0.1385,61585.0,61584.0,0.010065]
[1722645222044,0.1385,61585.0,61584.0,0.013065]
[1722645222253,0.1385,61585.0,61584.0,0.015065]
[1722645222481,0.1385,61585.0,61584.0,0.012065]
[1722645222906,0.1385,61585.0,61584.0,0.017065]
[1722645223965,0.1385,61585.0,61570.0,0.1]
[1722645223966,0.53803854,61585.0,61570.0,0.1]
[1722645224229,0.53803854,61585.0,61563.0,0.00281345]
[1722645224230,0.1385,61581.0,61563.0,0.00281345]
[1722645224461,0.1385,61577.0,61574.0,0.065033]
[1722645224686,0.1385,61574.0,61563.0,0.15745924]
[1722645224982,0.07875194,61582.0,61563.0,0.15745924]
[1722645224983,0.14256064,61573.0,61563.0,0.15745924]
[1722645225197,0.0622,61571.0,61562.0,0.1]
[1722645225409,0.0622,61569.0,61555.0,0.1]
[1722645225618,0.0622,61567.0,61564.0,0.065035]
[1722645225826,0.00406101,61566.0,61564.0,0.065035]
[1722645227153,0.0622,61567.0,61564.0,0.065035]
[1722645228037,0.004,61566.0,61564.0,0.065035]
[1722645228195,0.006,61566.0,61564.0,0.065035]
[1722645228622,0.0622,61567.0,61565.0,0.16070781]
[1722645228827,0.0622,61567.0,61565.0,0.15745924]
[1722645229055,0.0622,61567.0,61564.0,0.067035]
[1722645229256,0.0622,61567.0,61564.0,0.22249424]
[1722645229553,0.0662,61567.0,61564.0,0.22549424]
[1722645229732,0.0662,61567.0,61564.0,0.22249424]
[1722645230118,0.0622,61567.0,61565.0,0.004]
[1722645230716,0.0622,61567.0,61566.0,0.15745924]
[1722645231565,0.0622,61567.0,61565.0,0.004]
[1722645231780,0.0040608,61566.0,61565.0,0.004]
[1722645232193,0.0040608,61566.0,61565.0,0.004913]
[1722645232972,0.002,61566.0,61565.0,0.004913]
[1722645233188,0.002,61566.0,61564.0,0.029948]
[1722645233585,0.003,61566.0,61564.0,0.029948]
[1722645234006,0.00157439,61565.0,61564.0,0.029948]
[1722645234212,0.003,61566.0,61564.0,0.029948]
[1722645234415,0.001,61566.0,61564.0,0.029948]
[1722645234617,0.00157439,61565.0,61564.0,0.029948]
[1722645234816,0.001,61566.0,61564.0,0.004948]
[1722645235023,0.0622,61567.0,61564.0,0.004948]
[1722645235239,0.00406072,61566.0,61564.0,0.004948]
[1722645235441,0.00157439,61565.0,61564.0,0.004948]
[1722645236097,0.0622,61567.0,61564.0,0.016948]
[1722645236406,0.00157439,61566.0,61564.0,0.010948]
[1722645237177,0.0622,61567.0,61564.0,0.011948]
[1722645237560,0.00157439,61566.0,61564.0,0.011948]
[1722645237964,0.00157439,61566.0,61564.0,0.005948]
[1722645238508,0.00157439,61566.0,61564.0,0.004948]
[1722645238663,0.00157439,61566.0,61564.0,0.007948]
[1722645238871,0.001,61565.0,61564.0,0.007948]
[1722645239295,0.00406069,61566.0,61564.0,0.007948]
[1722645239643,0.00406069,61566.0,61564.0,0.003]
[1722645239644,0.49723318,61565.0,61564.0,0.003]
[1722645239840,0.75087718,61565.0,61564.0,0.003]
[1722645240128,0.75087718,61565.0,61544.0,0.47251164]
[1722645240129,0.1392,61556.0,61553.0,0.065053]
[1722645240339,0.14326188,61555.0,61544.0,0.47251164]
[1722645240547,0.14326188,61555.0,61551.0,0.065055]
[1722645240756,0.1392,61555.0,61551.0,0.065055]
[1722645241163,0.13744203,61555.0,61551.0,0.065055]
[1722645242294,0.13944203,61555.0,61551.0,0.065055]
[1722645242698,0.13744203,61555.0,61551.0,0.065055]
[1722645242936,0.13944203,61555.0,61551.0,0.065055]
[1722645243136,0.14344203,61555.0,61551.0,0.065055]
[1722645243409,0.0631,61553.0,61551.0,0.065055]
[1722645243603,0.2385,61555.0,61551.0,0.065055]
[1722645243604,0.06716222,61552.0,61551.0,0.065055]
[1722645243742,0.21250299,61552.0,61551.0,0.065055]
[1722645243969,0.21250299,61552.0,61533.0,0.1]
[1722645243970,0.01,61550.0,61533.0,0.1]
[1722645244361,0.43908736,61552.0,61533.0,0.1]
[1722645244362,0.0631,61543.0,61534.0,0.06507]
[1722645244693,0.0040628,61542.0,61534.0,0.06507]
[1722645244894,0.0631,61543.0,61535.0,0.15745924]
[1722645245128,0.06716281,61543.0,61535.0,0.15745924]
[1722645245678,0.06716281,61543.0,61534.0,0.06507]
[1722645245887,0.0631,61541.0,61534.0,0.06507]
[1722645246102,0.00406281,61543.0,61534.0,0.06507]
[1722645246103,0.00406281,61540.0,61535.0,0.003]
[1722645246310,0.2365,61538.0,61535.0,0.003]
[1722645246519,0.1392,61536.0,61535.0,0.003]
[1722645246744,0.1392,61536.0,61526.0,0.1]
[1722645246981,0.00406339,61535.0,61526.0,0.1]
[1722645247188,0.00406339,61535.0,61530.0,0.065078]
[1722645247396,0.00406339,61535.0,61526.0,0.1]
[1722645247867,0.00406339,61535.0,61522.0,0.00915]
[1722645247868,0.18904439,61535.0,61534.0,0.004]
[1722645248102,0.99004389,61535.0,61534.0,0.005]
[1722645248309,0.1392,61530.0,61527.0,0.06508]
[1722645248513,0.1392,61530.0,61526.0,0.001]
[1722645248514,0.0631,61528.0,61526.0,0.001]
[1722645248717,0.00406375,61527.0,61526.0,0.002]
[1722645248995,0.0631,61528.0,61526.0,0.001]
[1722645249205,0.0631,61528.0,61522.0,0.00915]
[1722645249375,0.00406343,61527.0,61522.0,0.00915]
[1722645249579,0.0631,61528.0,61522.0,0.00915]
[1722645249580,0.0631,61528.0,61522.0,0.074236]
[1722645249933,0.0631,61528.0,61526.0,0.002]
[1722645250471,0.13052715,61535.0,61528.0,0.1]
[1722645250472,0.0631,61533.0,61528.0,0.1]
[1722645250650,0.0631,61533.0,61529.0,0.15745924]
[1722645250860,0.11752715,61535.0,61529.0,0.15745924]
[1722645250861,0.11752715,61535.0,61530.0,0.07875194]
[1722645251060,0.11752715,61535.0,61531.0,0.15745924]
[1722645251270,0.11752715,61535.0,61533.0,0.0603]
[1722645251442,0.11752715,61535.0,61534.0,0.121883]
[1722645251677,0.11752715,61535.0,61534.0,0.25745924]
[1722645252957,0.11852715,61535.0,61534.0,0.27045924]
[1722645253297,0.11852715,61535.0,61534.0,0.013]
[1722645253904,0.11952715,61535.0,61534.0,0.024]
[1722645254904,0.002,61535.0,61534.0,0.024]
[1722645255097,0.14596324,61535.0,61534.0,0.024]
[1722645255761,0.14496324,61535.0,61534.0,0.013]
[1722645256792,0.0635,61533.0,61522.0,0.074236]
[1722645256997,0.00406361,61532.0,61522.0,0.074236]
[1722645258033,0.00406361,61532.0,61522.0,0.075236]
[1722645258236,0.0715,61533.0,61522.0,0.075236]
[1722645258237,0.00406359,61531.0,61522.0,0.075236]
[1722645258442,0.00406359,61531.0,61522.0,0.074236]
[1722645259481,0.005,61532.0,61522.0,0.074236]
[1722645259684,0.00706328,61532.0,61522.0,0.074236]
[1722645260083,0.0635,61533.0,61522.0,0.074236]
[1722645260410,0.002,61531.0,61522.0,0.074236]
[1722645261034,0.06756322,61533.0,61522.0,0.074236]
[1722645261466,0.0635,61533.0,61522.0,0.074236]
[1722645261888,0.0635,61533.0,61522.0,0.077236]
[1722645262088,0.0635,61533.0,61522.0,0.083236]
[1722645262373,0.0635,61533.0,61522.0,0.077236]
[1722645262503,0.0635,61533.0,61522.0,0.080236]
[1722645262942,0.0635,61533.0,61527.0,0.1]
[1722645263125,0.0635,61543.0,61528.0,0.15745924]
[1722645263346,0.00406276,61542.0,61528.0,0.15745924]
[1722645264363,0.00406276,61542.0,61528.0,0.15845924]
[1722645264872,0.00406276,61542.0,61528.0,0.15745924]
[1722645265081,0.02006276,61542.0,61528.0,0.15945924]
[1722645265551,0.1399,61534.0,61528.0,0.002]
[1722645265768,0.00406327,61533.0,61528.0,0.002]
[1722645265981,0.11736756,61533.0,61528.0,0.002]
[1722645266198,0.00406327,61533.0,61528.0,0.002]
[1722645266585,0.11404524,61532.0,61528.0,0.002]
[1722645266786,0.00406348,61531.0,61528.0,0.002]
[1722645267008,0.00406348,61531.0,61528.0,0.001]
[1722645267206,0.00406348,61531.0,61527.0,0.000913]
[1722645267384,0.1122118,61530.0,61527.0,0.000913]
[1722645267591,0.00406341,61529.0,61528.0,0.004]
[1722645267788,0.00406341,61529.0,61528.0,0.002]
[1722645267989,0.00406341,61533.0,61528.0,0.002]
[1722645268190,0.10902314,61529.0,61528.0,0.006]
[1722645268474,0.10902314,61529.0,61527.0,0.004913]
[1722645268688,0.00406357,61528.0,61527.0,0.004913]
[1722645268865,0.11279486,61528.0,61527.0,0.004913]
[1722645269093,0.10873129,61528.0,61527.0,0.004913]
[1722645269279,0.10886744,61529.0,61527.0,0.004913]
[1722645270095,0.10886744,61529.0,61527.0,0.000913]
[1722645271109,0.10986744,61529.0,61527.0,0.007913]
[1722645271735,0.10986744,61529.0,61527.0,0.012913]
[1722645272326,0.10998897,61528.0,61527.0,0.012913]
[1722645273148,0.10986744,61529.0,61527.0,0.007913]
[1722645273355,0.10753383,61528.0,61527.0,0.000913]
[1722645273593,0.10853383,61528.0,61527.0,0.006913]
[1722645273794,0.10953383,61528.0,61527.0,0.014913]
[1722645273995,0.10853383,61528.0,61527.0,0.000913]
[1722645274211,0.001,61528.0,61527.0,0.000913]
[1722645274422,0.001,61528.0,61527.0,0.012913]
[1722645274619,0.10886744,61529.0,61527.0,0.005913]
[1722645274866,0.00406302,61537.0,61527.0,0.000913]
[1722645275049,0.1097672,61536.0,61530.0,0.0648]
[1722645275252,0.0824,61545.0,61536.0,0.1]
[1722645275253,0.11309696,61542.0,61536.0,0.1]
[1722645275409,0.11404694,61541.0,61536.0,0.1]
[1722645275615,0.11404694,61540.0,61536.0,0.1]
[1722645275926,0.0646,61547.0,61536.0,0.1]
[1722645276130,0.0646,61547.0,61532.0,0.10324986]
[1722645276131,0.11475261,61545.0,61544.0,0.1]
[1722645276307,0.00967014,61549.0,61544.0,0.40255924]
[1722645276681,0.00967014,61549.0,61545.0,0.25745924]
[1722645276881,0.4785,61553.0,61545.0,0.25745924]
[1722645277083,0.11751892,61552.0,61545.0,0.25745924]
[1722645277193,0.4785,61553.0,61546.0,0.00324917]
[1722645277396,0.4785,61553.0,61547.0,0.15745924]
[1722645277597,0.4785,61553.0,61548.0,0.1]
[1722645277801,0.00406146,61552.0,61545.0,0.1]
[1722645278033,0.0646,61551.0,61545.0,0.004]
[1722645278269,0.11464636,61550.0,61545.0,0.004]
[1722645278485,0.4785,61553.0,61546.0,0.15745924]
[1722645278711,0.11264219,61552.0,61546.0,0.15745924]
[1722645278911,0.4785,61553.0,61546.0,0.15745924]
[1722645279996,0.4815,61553.0,61546.0,0.15745924]
[1722645280160,0.4815,61553.0,61545.0,0.1]
[1722645280161,0.0040615,61552.0,61545.0,0.1]
[1722645280368,0.0040615,61552.0,61537.0,0.1]
[1722645280590,0.0646,61550.0,61537.0,0.1]
[1722645280794,0.0646,61550.0,61531.0,0.1]
[1722645280795,0.11959965,61549.0,61531.0,0.1]
[1722645280993,0.1155374,61548.0,61531.0,0.1]
[1722645281335,0.11959966,61547.0,61546.0,0.001]
[1722645281767,0.18419966,61547.0,61546.0,0.001]
[1722645282145,0.4303795,61547.0,61546.0,0.001]
[1722645282345,0.87827811,61547.0,61546.0,0.001]
[1722645282726,0.43960348,61547.0,61530.0,0.1451]
[1722645282926,0.1111028,61546.0,61538.0,0.006]
[1722645283131,0.10704036,61545.0,61538.0,0.002]
[1722645283339,0.00406245,61544.0,61538.0,0.002]
[1722645283559,0.00406245,61544.0,61531.0,0.15745924]
[1722645283909,0.00406245,61544.0,61532.0,0.1]
[1722645284115,0.00406245,61544.0,61533.0,0.15745924]
[1722645284322,0.0646,61542.0,61532.0,0.1]
[1722645284543,0.0646,61542.0,61529.0,0.1]
[1722645284544,0.11283483,61541.0,61529.0,0.1]
[1722645284757,0.31304399,61540.0,61538.0,0.001]
[1722645284957,0.17743508,61539.0,61538.0,0.001]
[1722645285165,0.58401734,61539.0,61538.0,0.001]
[1722645285366,1.13541326,61539.0,61538.0,0.001]
[1722645285577,1.22229783,61539.0,61538.0,0.001]
[1722645285778,1.28383127,61539.0,61538.0,0.001]
[1722645285971,0.0646,61536.0,61527.0,0.000913]
[1722645286186,0.147,61530.0,61528.0,0.47251164]
[1722645286367,0.147,61530.0,61527.0,0.000913]
[1722645286590,0.10154621,61529.0,61527.0,0.000913]
[1722645286951,0.10154621,61529.0,61527.0,0.010913]
[1722645287156,0.10154621,61529.0,61528.0,0.01]
[1722645287346,0.10154621,61529.0,61527.0,0.000913]
[1722645287919,0.10654621,61529.0,61527.0,0.000913]
[1722645288167,0.10154621,61528.0,61527.0,0.000913]
[1722645288731,0.15007614,61528.0,61527.0,0.000913]
[1722645288929,0.10154621,61528.0,61527.0,0.000913]
[1722645289430,0.14409632,61528.0,61527.0,0.000913]
[1722645289653,0.80170829,61528.0,61527.0,0.000913]
[1722645289835,0.80170829,61528.0,61522.0,0.00915]
[1722645289836,0.769216,61523.0,61522.0,0.00915]
[1722645289991,1.38520952,61523.0,61522.0,0.00915]
[1722645290193,1.35035676,61523.0,61522.0,0.00915]
[1722645290415,1.26390475,61523.0,61522.0,0.00915]
[1722645290624,0.75381868,61523.0,61522.0,0.00915]
[1722645290865,0.88628647,61523.0,61522.0,0.00915]
[1722645291068,1.2408379,61523.0,61522.0,0.00915]
[1722645291305,1.12053419,61523.0,61522.0,0.01015]
[1722645291583,1.04409375,61523.0,61522.0,0.01015]
[1722645291799,1.14106153,61523.0,61522.0,0.01015]
[1722645291962,1.04409375,61523.0,61522.0,0.01015]
[1722645292148,1.11682117,61523.0,61522.0,0.01015]
[1722645292341,1.04309375,61523.0,61522.0,0.00915]
[1722645292570,1.49415436,61523.0,61522.0,0.00915]
[1722645292816,1.49415436,61523.0,61514.0,0.000913]
[1722645292817,0.0728,61515.0,61514.0,0.000913]
[1722645293022,0.23025924,61515.0,61514.0,0.000913]
[1722645293267,0.15621851,61515.0,61514.0,0.000913]
[1722645293491,0.0584619,61520.0,61514.0,0.000913]
[1722645293695,0.07426724,61522.0,61514.0,0.000913]
[1722645293696,0.0628,61519.0,61514.0,0.000913]
[1722645294410,0.003,61515.0,61514.0,0.000913]
[1722645294609,0.007,61515.0,61514.0,0.000913]
[1722645294868,0.007,61515.0,61514.0,0.010913]
[1722645295632,0.0628,61519.0,61514.0,0.010913]
[1722645295843,0.0628,61519.0,61518.0,0.01]
[1722645296048,0.0728,61519.0,61518.0,0.01]
[1722645296244,0.0708,61519.0,61518.0,0.01]
[1722645296448,0.0824,61523.0,61518.0,0.01]
[1722645296710,0.0824,61523.0,61514.0,0.003913]
[1722645296915,0.0824,61523.0,61516.0,0.01]
[1722645296916,0.001,61519.0,61516.0,0.01]
[1722645297033,0.001,61519.0,61517.0,0.01]
[1722645297257,0.00157439,61522.0,61517.0,0.01]
[1722645297655,0.0884,61523.0,61517.0,0.01]
[1722645297868,0.0884,61523.0,61521.0,0.01]
[1722645297869,0.00157439,61522.0,61521.0,0.01]
[1722645298078,0.00157439,61522.0,61514.0,0.000913]
[1722645298079,0.0884,61523.0,61522.0,0.01]
[1722645298293,0.006,61523.0,61522.0,0.01]
[1722645298719,0.00757439,61523.0,61522.0,0.01]
[1722645298935,0.0628,61524.0,61523.0,0.01]
[1722645300623,0.4785,61526.0,61525.0,0.01]
[1722645301283,0.0751,61536.0,61535.0,0.01]
[1722645301539,0.07334325,61539.0,61533.0,0.01]
[1722645301683,0.07334325,61539.0,61538.0,0.01]
[1722645302851,0.06363,61539.0,61534.0,0.01]
[1722645303185,0.06363,61539.0,61526.0,0.25745924]
[1722645303186,0.07263,61539.0,61538.0,0.001]
[1722645303414,0.07263,61539.0,61538.0,0.014]
[1722645303591,0.07263,61539.0,61538.0,0.013]
[1722645303592,0.06363,61539.0,61538.0,0.013]
[1722645303786,0.06363,61539.0,61533.0,0.01]
[1722645304058,0.06363,61539.0,61526.0,0.01]
[1722645304059,0.358376,61538.0,61526.0,0.01]
[1722645304261,0.06863,61539.0,61536.0,0.01]
[1722645304262,0.09909543,61537.0,61536.0,0.01]
[1722645304563,0.06863,61539.0,61536.0,0.01]
[1722645304564,0.06663,61539.0,61536.0,0.01]
[1722645304751,0.00157439,61538.0,61537.0,0.01]
[1722645304976,0.00157439,61538.0,61522.0,0.25745924]
[1722645304977,0.06663,61539.0,61538.0,0.01]
[1722645305179,0.00083,61539.0,61538.0,0.01]
[1722645305711,0.00283,61539.0,61537.0,0.01]
[1722645305911,0.00283,61539.0,61530.0,0.0663]
[1722645305912,0.00283,61539.0,61538.0,0.01]
[1722645306115,0.00083,61539.0,61538.0,0.01]
[1722645307061,0.00083,61539.0,61537.0,0.005]
[1722645307266,0.00083,61539.0,61537.0,0.01]
[1722645307470,0.00083,61539.0,61534.0,0.01]
[1722645307678,0.00083,61539.0,61521.0,0.47251164]
[1722645307679,0.3744,61538.0,61530.0,0.01]
[1722645308033,0.10384229,61537.0,61530.0,0.01]
[1722645308235,0.00157439,61537.0,61530.0,0.01]
[1722645308476,0.00157439,61537.0,61523.0,0.01]
[1722645308477,0.2596185,61536.0,61523.0,0.01]
[1722645308684,0.10373365,61535.0,61523.0,0.01]
[1722645308878,0.10373365,61535.0,61530.0,0.01]
[1722645308879,0.10215926,61534.0,61530.0,0.01]
[1722645309079,0.44708953,61538.0,61532.0,0.01]
[1722645309080,0.10373365,61533.0,61532.0,0.01]
[1722645309289,0.10215926,61533.0,61530.0,0.01]
[1722645309454,0.00157439,61537.0,61516.0,0.31951118]
[1722645309455,0.10541532,61532.0,61529.0,0.01]
[1722645309671,0.00157439,61532.0,61531.0,0.01]
[1722645309872,0.00157439,61537.0,61531.0,0.01]
[1722645310074,0.00157439,61537.0,61535.0,0.01]
[1722645310075,0.10620837,61536.0,61535.0,0.01]
[1722645310302,0.00083,61539.0,61538.0,0.01]
[1722645311674,0.00083,61539.0,61536.0,0.01]
[1722645311843,0.00083,61539.0,61538.0,0.01]
[1722645312830,0.00283,61539.0,61538.0,0.01]
[1722645313401,0.00783,61539.0,61538.0,0.01]
[1722645313672,0.00783,61539.0,61533.0,0.01]
[1722645313895,0.00783,61539.0,61538.0,0.01]
[1722645314122,0.11466642,61539.0,61537.0,0.01]
[1722645314386,0.10683642,61538.0,61535.0,0.01]
[1722645314607,0.10683642,61538.0,61528.0,0.01]
[1722645314608,0.0796,61536.0,61528.0,0.01]
[1722645314854,0.00157439,61535.0,61526.0,0.01]
[1722645315069,0.00157439,61535.0,61520.0,0.1]
[1722645315070,0.00157439,61535.0,61522.0,0.01]
[1722645315447,0.00157439,61535.0,61517.0,0.01]
[1722645315448,0.22315924,61534.0,61517.0,0.01]
[1722645315648,0.1453,61529.0,61515.0,0.01]
[1722645315956,0.15903363,61528.0,61515.0,0.01]
[1722645316149,0.0657,61524.0,61515.0,0.01]
[1722645316347,0.15903363,61528.0,61514.0,0.000913]
[1722645316348,0.0657,61519.0,61514.0,0.000913]
[1722645316719,0.04855648,61518.0,61514.0,0.000913]
[1722645317121,0.04855648,61518.0,61515.0,0.001]
[1722645317321,0.04855647,61518.0,61515.0,0.001]
[1722645317730,0.04855647,61517.0,61515.0,0.001]